bitfinex/quotes_SOLUSD_20251212
["timestamp","ask_amount","ask_price","bid_price","bid_amount"]
[1765556255996,82.501434,133.31,133.23,0.72]
[1765556256296,75.0,133.29,133.23,0.72]
[1765556256497,8.80994492,133.28,133.23,13.24416804]
[1765556256704,75.0,133.27,133.23,13.24416804]
[1765556256908,75.0,133.27,133.24,13.24416804]
[1765556257104,82.50367288,133.27,133.24,13.24416804]
[1765556257289,82.50367288,133.27,133.22,15.70620868]
[1765556257490,8.80994492,133.26,133.22,21.44416804]
[1765556257719,8.80994492,133.26,133.21,13.24416804]
[1765556257930,20.39124912,133.24,133.17,0.72]
[1765556258130,86.5813042,133.23,133.18,11.5813042]
[1765556258306,96.6870912,133.25,133.2,11.5813042]
[1765556258489,96.2670912,133.25,133.21,11.5813042]
[1765556259001,16.31519859,133.24,133.19,11.5813042]
[1765556259201,16.31519859,133.24,133.17,11.5813042]
[1765556259202,103.61124912,133.23,133.17,11.5813042]
[1765556259717,103.61124912,133.23,133.15,0.72]
[1765556259718,170.39124912,133.21,133.15,0.72]
[1765556259920,11.5813042,133.19,133.13,8.92]
[1765556260227,83.22,133.21,133.17,11.5813042]
[1765556260824,83.22,133.21,133.16,11.5813042]
[1765556261021,19.0888117,133.2,133.14,8.23086314]
[1765556261194,46.08520989,133.2,133.15,11.58893363]
[1765556261494,24.63602483,133.16,133.07,18.78673366]
[1765556261692,11.58893363,133.14,133.08,11.58893363]
[1765556261892,94.80893363,133.15,133.09,11.58893363]
[1765556262094,83.22,133.15,133.09,11.58893363]
[1765556262333,94.80893363,133.15,133.09,11.58893363]
[1765556262620,83.22,133.15,133.1,11.58893363]
[1765556262912,83.22,133.15,133.09,0.72]
[1765556262913,8.22,133.15,133.09,0.72]
[1765556263220,63.81381379,133.2,133.09,0.72]
[1765556263221,75.42,133.21,133.14,11.58893363]
[1765556263429,83.22,133.21,133.17,11.58893363]
[1765556263717,83.22,133.21,133.18,11.58893363]
[1765556263718,8.22,133.21,133.18,11.58893363]
[1765556264745,84.22994492,133.2,133.14,8.2]
[1765556265059,7.50807117,133.19,133.14,15.71065527]
[1765556265227,7.50807117,133.19,133.15,11.58893363]
[1765556265428,7.92807117,133.19,133.14,15.71065527]
[1765556265610,16.14807117,133.19,133.15,11.58893363]
[1765556266118,15.72807117,133.19,133.15,11.58893363]
[1765556266294,8.22,133.19,133.15,19.09905666]
[1765556266499,8.22,133.19,133.17,11.58893363]
[1765556266696,16.31747447,133.2,133.14,7.51075666]
[1765556267023,75.0,133.19,133.14,11.58893363]
[1765556267323,8.22,133.19,133.16,11.58893363]
[1765556267702,83.22,133.19,133.15,7.51026858]
[1765556268021,91.31747447,133.2,133.16,11.58893363]
[1765556268194,15.727072,133.21,133.18,11.58893363]
[1765556268519,15.727072,133.21,133.16,7.50947225]
[1765556268520,8.80994492,133.2,133.15,11.58893363]
[1765556268714,83.80994492,133.2,133.15,11.58893363]
[1765556268937,83.80994492,133.2,133.15,19.09923489]
[1765556269114,83.80994492,133.2,133.16,11.58893363]
[1765556270113,7.50807117,133.19,133.16,11.58893363]
[1765556270348,75.0,133.2,133.16,19.09853947]
[1765556270518,13.0470912,133.18,133.13,7.51107166]
[1765556270718,21.2670912,133.18,133.14,19.09928195]
[1765556270936,21.2670912,133.18,133.14,7.51034832]
[1765556271133,21.2670912,133.18,133.14,11.58893363]
[1765556271330,21.2670912,133.18,133.14,19.09976986]
[1765556271645,21.2670912,133.18,133.15,19.81880256]
[1765556272025,21.2670912,133.18,133.15,12.30893363]
[1765556272235,159.22994492,133.17,133.12,7.51197209]
[1765556272428,83.80994492,133.17,133.12,19.10090572]
[1765556272753,40.36495665,133.18,133.15,11.58893363]
[1765556272754,28.77602302,133.18,133.15,11.58893363]
[1765556272953,28.77602302,133.18,133.16,11.58893363]
[1765556272954,8.22,133.18,133.16,11.58893363]
[1765556273249,28.77465439,133.2,133.17,11.58893363]
[1765556273419,33.54798752,133.22,133.18,11.58893363]
[1765556273420,13.47807012,133.22,133.18,11.58893363]
[1765556273620,21.69807012,133.22,133.18,11.58893363]
[1765556274040,15.72658701,133.22,133.18,11.58893363]
[1765556274244,21.69807012,133.22,133.18,11.58893363]
[1765556274561,22.11807012,133.22,133.17,11.58893363]
[1765556274730,8.80994492,133.21,133.16,11.58893363]
[1765556274931,89.19148311,133.2,133.15,19.78893363]
[1765556275143,8.22,133.2,133.16,11.58893363]
[1765556275317,8.22,133.2,133.16,8.22961774]
[1765556275647,8.22,133.2,133.17,11.58893363]
[1765556275845,83.22,133.2,133.15,8.2]
[1765556276143,7.50863493,133.18,133.15,8.2]
[1765556276318,26.28022225,133.18,133.11,7.51234842]
[1765556276526,101.79036166,133.17,133.11,11.58893363]
[1765556276721,89.78142803,133.15,133.11,11.58893363]
[1765556277148,14.78142803,133.16,133.12,11.58893363]
[1765556277448,8.80994492,133.16,133.11,19.82117086]
[1765556277644,75.0,133.15,133.1,11.58893363]
[1765556277943,75.0,133.15,133.1,19.10205339]
[1765556278149,7.51089079,133.14,133.11,11.58893363]
[1765556278445,15.72994411,133.16,133.12,11.58893363]
[1765556279023,15.72994411,133.16,133.12,12.30893363]
[1765556279453,7.50994411,133.16,133.12,11.58893363]
[1765556279638,7.50994411,133.16,133.12,19.10080266]
[1765556279823,7.50994411,133.16,133.12,19.82080266]
[1765556280023,7.50994411,133.16,133.12,7.73186903]
[1765556280224,35.51429575,133.16,133.11,7.5502955]
[1765556280426,91.36024042,133.15,133.09,15.71336737]
[1765556280649,75.0,133.15,133.12,7.5502955]
[1765556280949,8.80994492,133.14,133.09,8.2]
[1765556281130,16.36024042,133.12,133.07,8.2344041]
[1765556281334,75.0,133.11,133.05,7.5502955]
[1765556281524,7.513148,133.1,133.05,7.51562051]
[1765556281839,47.56310922,133.1,133.04,8.2]
[1765556282038,166.36024042,133.09,133.04,8.2]
[1765556282245,166.36024042,133.09,133.0,0.72]
[1765556282246,91.36024042,133.07,133.0,0.72]
[1765556282431,83.80994492,133.05,133.01,8.2]
[1765556282631,83.22,133.05,133.02,7.5502955]
[1765556282848,8.22,133.07,133.04,7.5502955]
[1765556283154,8.22,133.07,133.05,7.5502955]
[1765556283847,83.22,133.09,133.06,7.5502955]
[1765556284049,13.4670912,133.11,133.08,7.5502955]
[1765556284050,103.77979447,133.11,133.08,7.5502955]
[1765556284255,8.80994492,133.15,133.1,7.5502955]
[1765556284430,157.50988775,133.16,133.1,7.5502955]
[1765556284431,75.0,133.16,133.13,7.5502955]
[1765556284627,75.0,133.16,133.1,0.72]
[1765556284628,75.0,133.16,133.14,7.5502955]
[1765556284826,82.50987528,133.16,133.11,0.72]
[1765556285048,82.50987528,133.16,133.13,7.5502955]
[1765556285230,8.80994492,133.15,133.1,13.0470912]
[1765556285433,8.80994492,133.15,133.08,0.72]
[1765556285637,8.80994492,133.13,133.05,19.50992859]
[1765556285959,8.80994492,133.13,133.09,7.5502955]
[1765556286156,8.80994492,133.13,133.08,15.06439528]
[1765556286632,8.80994492,133.11,133.06,15.73501481]
[1765556286834,8.80994492,133.11,133.05,7.5502955]
[1765556287049,8.80994492,133.11,133.04,0.72]
[1765556287050,16.36024042,133.11,133.04,0.72]
[1765556287357,16.36024042,133.11,133.05,7.5502955]
[1765556287655,7.513148,133.1,133.05,7.5502955]
[1765556288027,90.0634435,133.1,133.05,7.5502955]
[1765556288234,111.3505347,133.1,133.05,7.5502955]
[1765556288442,111.7705347,133.1,133.04,15.7866956]
[1765556288754,16.36024042,133.09,133.04,8.2702955]
[1765556288928,103.8002392,133.1,133.05,15.06618868]
[1765556289336,111.3505347,133.1,133.05,15.06618868]
[1765556289747,21.2870912,133.1,133.06,0.72]
[1765556289948,104.22032002,133.1,133.05,15.06618868]
[1765556290146,103.80032002,133.1,133.05,8.2702955]
[1765556290731,186.35061552,133.1,133.05,8.2702955]
[1765556290959,75.0,133.08,133.04,7.5502955]
[1765556291139,165.7902955,133.08,133.03,8.22]
[1765556291458,29.82733162,133.07,133.01,15.06833253]
[1765556291660,8.24,133.06,133.02,15.06776908]
[1765556291870,8.24,133.06,133.03,7.5502955]
[1765556292033,13.0470912,133.07,133.04,8.2702955]
[1765556292235,17.04994492,133.09,133.04,0.72]
[1765556292543,75.0,133.12,133.08,7.5502955]
[1765556292744,8.24,133.12,133.09,7.5502955]
[1765556292938,75.0,133.16,133.11,7.5502955]
[1765556292939,82.50993163,133.16,133.11,7.5502955]
[1765556293132,82.50998505,133.16,133.12,7.5502955]
[1765556293356,8.80994492,133.15,133.08,8.22]
[1765556293532,75.0,133.14,133.08,8.22]
[1765556293734,7.51145496,133.13,133.1,7.5502955]
[1765556294138,15.75088686,133.15,133.11,7.5502955]
[1765556294339,8.24,133.15,133.12,7.5502955]
[1765556294759,8.24,133.15,133.1,0.72]
[1765556294760,75.0,133.18,133.14,7.5502955]
[1765556295097,75.0,133.2,133.17,7.5502955]
[1765556295361,5.97148311,133.27,133.17,7.5502955]
[1765556295362,75.0,133.26,133.19,7.5502955]
[1765556295670,75.0,133.26,133.24,7.5502955]
[1765556295860,8.24,133.27,133.24,7.5502955]
[1765556296059,150.42,133.26,133.19,13.0470912]
[1765556296280,75.0,133.23,133.14,19.4968971]
[1765556296570,75.0,133.23,133.16,7.5502955]
[1765556296571,75.0,133.21,133.16,7.5502955]
[1765556296746,75.0,133.21,133.15,15.7702955]
[1765556296747,8.80994492,133.2,133.15,15.7702955]
[1765556297180,84.22994492,133.2,133.15,15.7702955]
[1765556297337,0.42,133.19,133.15,8.22]
[1765556297536,75.0,133.17,133.12,8.22]
[1765556297765,75.0,133.17,133.1,8.22]
[1765556297766,7.51032669,133.15,133.1,8.22]
[1765556297936,7.51032669,133.15,133.11,7.5502955]
[1765556298141,7.51032669,133.15,133.12,7.5502955]
[1765556298536,7.51032669,133.15,133.09,7.5502955]
[1765556298537,92.46994492,133.14,133.09,7.5502955]
[1765556298936,188.06733162,133.14,133.09,7.5502955]
[1765556299141,0.42,133.13,133.08,7.51410844]
[1765556299338,0.42,133.13,133.08,7.5502955]
[1765556299558,99.60581662,133.12,133.05,7.51582054]
[1765556299761,7.51258357,133.11,133.05,7.51582054]
[1765556300271,7.51258357,133.11,133.07,7.5558717]
[1765556300844,83.24,133.12,133.09,7.5558717]
[1765556301144,150.0,133.1,133.02,19.49411224]
[1765556301466,83.24,133.1,133.06,7.5558717]
[1765556301774,7.51371252,133.09,133.05,7.5558717]
[1765556302066,7.51371252,133.09,133.04,15.07231066]
[1765556302373,7.51371252,133.09,133.02,13.0470912]
[1765556302374,179.83290782,133.08,133.02,7.5558717]
[1765556302561,8.24,133.07,133.02,7.5558717]
[1765556302761,8.66,133.07,133.02,7.5558717]
[1765556303143,8.24,133.09,133.06,7.5558717]
[1765556303346,75.0,133.12,133.08,7.5558717]
[1765556303643,75.42,133.12,133.05,8.22]
[1765556303852,7.51258357,133.11,133.08,7.5558717]
[1765556304048,8.24,133.13,133.1,7.5558717]
[1765556304256,8.24,133.13,133.11,7.5558717]
[1765556304569,15.75158082,133.13,133.11,7.5558717]
[1765556304770,15.75158082,133.13,133.08,7.51425767]
[1765556305070,15.75158082,133.13,133.07,7.5558717]
[1765556305071,75.42,133.12,133.07,7.5558717]
[1765556305273,75.42,133.12,133.06,8.23497916]
[1765556305490,75.0,133.12,133.09,7.5558717]
[1765556305660,15.75158082,133.13,133.09,7.5558717]
[1765556306250,16.17158082,133.13,133.08,7.5558717]
[1765556306467,83.80994492,133.12,133.08,7.5558717]
[1765556306710,15.75158082,133.13,133.09,7.5558717]
[1765556306984,15.75158082,133.13,133.08,8.2337597]
[1765556307268,15.75158082,133.13,133.1,7.5558717]
[1765556308394,8.80994492,133.12,133.06,7.51499067]
[1765556308694,84.22994492,133.12,133.07,7.5558717]
[1765556309191,84.22994492,133.12,133.06,7.51499067]
[1765556309497,7.5558717,133.09,133.01,19.51473063]
[1765556309786,8.24,133.08,133.04,7.5558717]
[1765556309997,8.80994492,133.07,133.01,8.23806842]
[1765556310166,90.75476482,133.08,133.04,7.5558717]
[1765556310365,90.75476482,133.08,133.0,40.78375863]
[1765556310366,8.80994492,133.07,133.0,40.78375863]
[1765556310568,90.75476482,133.08,133.04,7.5558717]
[1765556310965,90.75476482,133.08,133.03,7.51704215]
[1765556311176,9.22994492,133.07,133.02,7.5558717]
[1765556311377,90.75476482,133.08,133.04,7.5558717]
[1765556311682,8.24,133.1,133.06,7.5558717]
[1765556311882,15.75330895,133.1,133.06,7.5558717]
[1765556312094,8.24,133.1,133.07,7.5558717]
[1765556312275,95.55866375,133.13,133.08,7.5558717]
[1765556312481,8.24,133.12,133.08,7.5558717]
[1765556312680,8.80994492,133.11,133.05,7.51594421]
[1765556312876,83.80994492,133.11,133.06,7.5558717]
[1765556313290,83.80994492,133.11,133.05,7.5558717]
[1765556313291,0.42,133.1,133.05,7.5558717]
[1765556313493,83.80994492,133.09,133.05,7.5558717]
[1765556313690,8.24,133.1,133.06,7.5558717]
[1765556313897,8.24,133.1,133.07,7.5558717]
[1765556314095,82.51273629,133.11,133.08,7.5558717]
[1765556314394,82.51273629,133.11,133.04,27.01001321]
[1765556314395,82.93273629,133.11,133.05,7.5158547]
[1765556314698,8.24,133.12,133.08,7.5558717]
[1765556314993,20.55893491,133.13,133.07,7.51465876]
[1765556314994,26.29048113,133.13,133.07,7.51465876]
[1765556315201,8.80994492,133.12,133.07,7.5558717]
[1765556315496,100.02581662,133.12,133.07,7.5558717]
[1765556315702,0.42,133.11,133.07,7.5558717]
[1765556315996,88.0470912,133.12,133.05,7.51596393]
[1765556316190,88.0470912,133.12,133.08,7.5558717]
[1765556316592,75.0,133.1,133.04,15.73639661]
[1765556316799,75.0,133.1,133.05,7.5558717]
[1765556316983,75.0,133.1,133.06,7.5558717]
[1765556317184,118.34400631,133.11,133.06,7.5558717]
[1765556317388,118.76400631,133.11,133.06,7.5558717]
[1765556317590,118.76400631,133.11,133.04,8.94]
[1765556317795,75.0,133.1,133.05,7.5558717]
[1765556318191,7.51371252,133.09,133.05,7.5558717]
[1765556318578,15.75371252,133.09,133.04,16.4958717]
[1765556319106,16.17371252,133.09,133.04,24.01237144]
[1765556319283,16.17371252,133.09,133.04,24.01235923]
[1765556319622,15.75371252,133.09,133.05,7.5558717]
[1765556319790,15.75371252,133.09,133.06,7.5558717]
[1765556320123,7.51371252,133.09,133.05,12.28025907]
[1765556320279,87.28025907,133.14,133.08,12.28025907]
[1765556320478,83.24,133.14,133.06,1.00432314]
[1765556320713,96.2870912,133.14,133.09,12.28025907]
[1765556321003,96.2870912,133.14,133.06,1.00432314]
[1765556321004,83.24,133.14,133.1,12.28025907]
[1765556321205,83.24,133.14,133.08,8.22]
[1765556321206,109.52826211,133.14,133.09,12.28025907]
[1765556321405,8.80994492,133.13,133.08,20.50025907]
[1765556321590,8.80994492,133.13,133.09,12.28025907]
[1765556322113,83.24,133.14,133.1,12.28025907]
[1765556322410,82.50996114,133.16,133.12,12.28025907]
[1765556322612,75.0,133.18,133.15,12.28025907]
[1765556322779,75.0,133.2,133.16,12.28025907]
[1765556322980,96.2870912,133.2,133.16,12.28025907]
[1765556323304,83.24,133.2,133.16,13.00025907]
[1765556323503,7.50710893,133.21,133.17,0.72]
[1765556323691,7.50590176,133.23,133.17,0.72]
[1765556323898,39.31753548,133.23,133.18,12.28025907]
[1765556324208,39.31753548,133.23,133.17,8.22918292]
[1765556324377,96.51020399,133.22,133.16,20.50025907]
[1765556324584,83.80994492,133.2,133.15,12.28025907]
[1765556324806,92.04994492,133.2,133.15,12.28025907]
[1765556325111,92.04994492,133.2,133.15,20.51057039]
[1765556325319,92.04994492,133.2,133.15,8.23031132]
[1765556325484,92.46994492,133.2,133.15,12.28025907]
[1765556325889,104.75020399,133.2,133.14,12.28025907]
[1765556326112,7.50863493,133.18,133.13,8.94]
[1765556326311,75.0,133.16,133.1,0.72]
[1765556326511,8.80994492,133.15,133.1,19.79333648]
[1765556327119,8.80994492,133.15,133.1,20.51316157]
[1765556327619,8.80994492,133.15,133.11,12.28025907]
[1765556327785,13.0470912,133.17,133.11,0.72]
[1765556327993,13.0470912,133.17,133.13,12.28025907]
[1765556328315,90.74863493,133.18,133.14,12.28025907]
[1765556328522,90.74863493,133.18,133.12,20.50025907]
[1765556328523,8.80994492,133.17,133.12,20.50025907]
[1765556328823,75.0,133.15,133.12,8.22]
[1765556329024,75.0,133.15,133.1,32.84039112]
[1765556329184,8.24,133.16,133.11,0.72]
[1765556329390,83.80994492,133.15,133.09,0.72]
[1765556329587,12.28025907,133.11,133.05,13.00025907]
[1765556329917,17.04994492,133.13,133.08,12.28025907]
[1765556330302,7.51201923,133.12,133.09,0.69]
[1765556330826,88.0470912,133.14,133.09,0.69]
[1765556331004,15.75047991,133.15,133.11,12.28025907]
[1765556331211,15.75047991,133.15,133.11,12.97025907]
[1765556331524,15.75047991,133.15,133.11,0.69]
[1765556332242,90.75047991,133.15,133.11,0.69]
[1765556332690,121.80655572,133.15,133.09,20.48384782]
[1765556333102,109.52629665,133.15,133.1,12.28025907]
[1765556333298,83.80994492,133.14,133.09,0.69]
[1765556333498,96.09020399,133.12,133.06,12.97025907]
[1765556333697,96.2870912,133.13,133.07,0.69]
[1765556333915,75.0,133.15,133.07,0.69]
[1765556334103,25.32735027,133.16,133.1,12.28025907]
[1765556334298,51.61187395,133.16,133.1,12.28025907]
[1765556334600,12.28025907,133.12,133.07,7.5146311]
[1765556334923,12.28025907,133.11,133.05,8.22]
[1765556335095,21.09020399,133.12,133.06,20.48556585]
[1765556335598,75.0,133.11,133.06,12.97025907]
[1765556335919,75.0,133.11,133.05,15.73581399]
[1765556335920,7.51371252,133.09,133.05,8.22]
[1765556336124,7.51371252,133.09,133.04,20.48644728]
[1765556336437,15.75371252,133.09,133.05,8.20577003]
[1765556336798,8.24,133.09,133.05,20.4860291]
[1765556336998,8.24,133.09,133.03,12.28025907]
[1765556336999,12.28025907,133.08,133.03,12.28025907]
[1765556337302,20.94025907,133.09,133.03,20.48714688]
[1765556337508,20.52025907,133.09,133.03,20.48714688]
[1765556337699,171.09020399,133.08,133.03,0.69]
[1765556337898,28.03510088,133.07,133.01,28.01840231]
[1765556338106,28.04242055,133.07,133.01,28.71572198]
[1765556338304,41.08951175,133.07,133.01,28.71572198]
[1765556338626,171.09752366,133.06,133.01,8.91]
[1765556339921,171.09752366,133.04,132.99,0.1]
[1765556340104,7.5171014,133.03,132.99,0.1]
[1765556340506,7.5171014,133.03,132.99,0.79]
[1765556340821,7.5171014,133.03,132.99,0.1]
[1765556340822,12.28757874,133.03,132.99,0.1]
[1765556341023,12.28757874,133.02,132.99,0.1]
[1765556341230,175.33466994,133.03,132.99,0.1]
[1765556341425,109.14461486,133.0,132.91,0.1]
[1765556341639,109.14461486,133.0,132.92,0.69]
[1765556341640,8.80994492,132.97,132.92,0.69]
[1765556341950,8.24,132.99,132.92,40.06871923]
[1765556342145,175.33466994,133.0,132.93,8.22]
[1765556342301,175.33466994,133.0,132.94,12.28757874]
[1765556342302,100.33466994,133.0,132.94,12.28757874]
[1765556342504,75.0,133.0,132.96,12.28757874]
[1765556342729,75.0,133.0,132.96,0.69]
[1765556343032,75.0,133.0,132.96,12.97757874]
[1765556343410,75.0,133.0,132.96,0.69]
[1765556343609,175.33466994,133.0,132.94,0.69]
[1765556343816,175.33466994,133.0,132.93,8.22]
[1765556343817,96.09752366,132.97,132.92,7.52332229]
[1765556344143,87.28757874,132.96,132.91,8.3137127]
[1765556344326,82.52112941,132.96,132.91,8.3137127]
[1765556344539,8.80994492,132.93,132.91,0.1]
[1765556344713,34.14461486,132.93,132.91,0.1]
[1765556344912,8.24,132.95,132.91,0.1]
[1765556345121,13.0470912,132.98,132.93,12.28757874]
[1765556345338,75.0,132.99,132.92,0.97432314]
[1765556345537,75.0,132.99,132.94,12.28757874]
[1765556346038,75.0,132.99,132.95,7.52162467]
[1765556346340,75.0,132.99,132.96,12.28757874]
[1765556346513,75.0,132.99,132.95,7.52162467]
[1765556346918,94.80694193,132.99,132.95,7.52162467]
[1765556347118,96.09752366,132.98,132.94,7.52208107]
[1765556347331,104.33752366,132.98,132.94,7.52208107]
[1765556347633,104.33752366,132.98,132.93,15.74260355]
[1765556347634,75.0,132.97,132.93,15.74260355]
[1765556347840,75.0,132.97,132.94,7.52196367]
[1765556348043,75.0,132.99,132.94,19.80954241]
[1765556348246,75.0,132.99,132.95,0.69]
[1765556348449,75.0,132.99,132.94,26.32743982]
[1765556348634,75.0,132.99,132.94,39.30501856]
[1765556348950,17.04994492,132.98,132.94,8.21196367]
[1765556349124,8.24,132.98,132.94,20.49954241]
[1765556349330,8.24,132.98,132.95,0.69]
[1765556349525,8.24,132.98,132.94,8.21196367]
[1765556349941,8.24,132.98,132.94,20.49954241]
[1765556350137,17.04994492,133.0,132.96,12.28757874]
[1765556350342,75.0,133.0,132.99,12.28757874]
[1765556350554,17.04994492,133.03,132.99,0.69]
[1765556350856,17.04994492,133.03,132.95,8.22]
[1765556350857,99.56705112,133.03,132.98,12.28757874]
[1765556351144,65.73964694,133.1,133.0,12.28757874]
[1765556351145,82.51579772,133.06,133.0,12.28757874]
[1765556351450,8.24,133.05,132.99,0.69]
[1765556351652,87.28757874,133.04,132.99,0.69]
[1765556352148,87.28757874,133.04,132.98,7.51948098]
[1765556352149,112.17478694,133.03,132.98,7.51948098]
[1765556352447,13.0470912,133.04,133.0,12.28757874]
[1765556352627,99.56577828,133.06,133.01,12.28757874]
[1765556352825,99.56577828,133.06,132.99,0.69]
[1765556353026,90.75583336,133.06,133.0,0.69]
[1765556353351,21.2870912,133.06,133.0,0.69]
[1765556353522,8.24,133.06,133.02,12.28757874]
[1765556354057,24.57515748,133.03,132.91,0.1]
[1765556354226,13.0470912,132.92,132.91,0.1]
[1765556354428,21.85703612,132.92,132.91,0.1]
[1765556356045,34.14461486,132.92,132.91,0.1]
[1765556356247,21.85703612,132.92,132.91,0.1]
[1765556356964,34.14461486,132.92,132.91,0.1]
[1765556357346,29.38035841,132.92,132.91,0.1]
[1765556357546,41.66793715,132.92,132.91,0.1]
[1765556358978,42.17226029,132.92,132.91,0.1]
[1765556359263,42.17226029,132.92,132.91,1e-08]
[1765556359967,42.03009872,132.92,132.91,1e-08]
[1765556360140,41.88793715,132.92,132.91,1e-08]
[1765556360340,8.80994492,132.87,132.82,0.69]
[1765556360540,12.28757874,132.86,132.82,0.69]
[1765556360744,8.80994492,132.87,132.82,0.69]
[1765556361067,19.81451001,132.86,132.82,0.69]
[1765556361270,8.80994492,132.85,132.82,0.69]
[1765556361439,93.81513441,132.88,132.82,8.21894032]
[1765556361440,12.28757874,132.87,132.82,8.21894032]
[1765556361642,95.52757874,132.88,132.83,0.69]
[1765556362354,12.28757874,132.87,132.83,0.69]
[1765556362550,8.80994492,132.87,132.83,0.69]
[1765556363084,0.22,132.91,132.83,0.69]
[1765556363085,75.0,132.92,132.84,12.57190188]
[1765556363291,20.52757874,132.92,132.85,12.28757874]
[1765556363489,75.0,132.94,132.86,12.28757874]
[1765556363690,12.28757874,132.93,132.87,0.69]
[1765556364295,12.28757874,132.91,132.87,0.69]
[1765556364465,12.28757874,132.89,132.85,0.69]
[1765556364766,20.52757874,132.91,132.85,0.69]
[1765556364968,83.80994492,132.92,132.86,19.81429859]
[1765556365178,12.28757874,132.91,132.86,7.52671985]
[1765556365390,12.28757874,132.9,132.87,0.69]
[1765556365586,12.28757874,132.9,132.86,7.52671985]
[1765556365763,12.28757874,132.87,132.83,15.74824519]
[1765556366087,8.24,132.88,132.83,16.43834177]
[1765556366289,8.24,132.88,132.83,15.74834177]
[1765556366290,12.28757874,132.87,132.83,15.74834177]
[1765556366587,20.52757874,132.9,132.84,0.69]
[1765556366768,12.28757874,132.9,132.84,0.69]
[1765556367091,75.0,132.96,132.87,12.28757874]
[1765556367271,8.80994492,132.95,132.89,12.28757874]
[1765556367468,21.09752366,132.95,132.88,12.28757874]
[1765556367985,12.28757874,132.96,132.9,12.28757874]
[1765556368379,12.28757874,132.95,132.88,20.50757874]
[1765556368568,12.28757874,132.94,132.9,0.69]
[1765556368893,19.80987629,132.94,132.9,0.69]
[1765556369066,87.28757874,132.96,132.9,8.21431113]
[1765556369261,87.28757874,132.96,132.91,0.69]
[1765556369575,7.51937598,132.99,132.93,12.28757874]
[1765556369763,19.80695472,132.99,132.92,12.28757874]
[1765556369964,90.75896923,133.0,132.93,12.28757874]
[1765556370186,8.80994492,132.99,132.93,12.28757874]
[1765556370415,12.28757874,132.98,132.94,0.69]
[1765556370629,37.58567477,133.03,132.94,0.69]
[1765556370630,75.22,133.06,132.97,12.28757874]
[1765556370813,82.51559524,133.06,133.0,12.28757874]
[1765556371117,75.0,133.04,132.94,8.91]
[1765556371294,105.31703612,133.05,132.96,7.52082145]
[1765556371295,21.09752366,133.01,132.96,7.52082145]
[1765556371493,21.09752366,133.01,132.97,7.52040953]
[1765556371697,12.28757874,133.0,132.97,0.69]
[1765556371914,8.80994492,133.01,132.97,0.69]
[1765556372224,8.80994492,132.99,132.94,16.43208433]
[1765556372394,8.80994492,132.99,132.95,12.28757874]
[1765556372801,8.24,132.98,132.93,0.69]
[1765556373024,7.52049334,132.97,132.93,20.50031822]
[1765556373197,7.52049334,132.97,132.93,12.97757874]
[1765556373518,7.52049334,132.97,132.93,20.50027657]
[1765556373716,7.52049334,132.97,132.93,0.69]
[1765556374042,7.52049334,132.97,132.93,12.97757874]
[1765556374248,15.76009519,132.98,132.95,12.28757874]
[1765556374548,15.76009519,132.98,132.93,8.21262672]
[1765556374549,21.09752366,132.97,132.92,7.52329041]
[1765556374747,8.80994492,132.97,132.93,12.97757874]
[1765556375039,16.33066058,132.97,132.93,12.97757874]
[1765556375621,16.33066058,132.97,132.93,20.50033186]
[1765556375821,16.33066058,132.97,132.94,12.28757874]
[1765556376045,7.51885871,133.0,132.96,12.28757874]
[1765556376428,15.75826178,133.01,132.98,12.28757874]
[1765556376642,8.24,133.01,132.99,12.28757874]
[1765556376943,8.24,133.01,132.94,8.50432314]
[1765556376944,8.80994492,133.01,132.96,12.97757874]
[1765556377118,7.51879699,133.0,132.96,12.97757874]
[1765556377518,7.51879699,133.0,132.97,12.29836722]
[1765556377826,75.0,133.02,132.97,0.69]
[1765556378016,8.24,133.03,132.98,0.69]
[1765556378219,15.75737912,133.03,133.0,12.29836722]
[1765556378448,8.80994492,133.02,132.98,12.98836722]
[1765556379016,7.51823171,133.01,132.98,12.98836722]
[1765556379458,8.24,133.03,132.99,0.69]
[1765556379643,6.00199815,133.08,133.02,12.29836722]
[1765556379942,162.29836722,133.09,133.02,8.22]
[1765556379943,90.7540811,133.09,133.02,8.22]
[1765556380117,8.80994492,133.06,133.02,12.29836722]
[1765556381121,7.51597143,133.05,133.0,7.51848002]